Cogmind - Beta 12 X4 @@@ ROGUE MODE // 2022.10.17 @ 23:06:32 Player: JackNine Result: Destroyed by D-53 Grenadier with Mini Grenade Launcher Performance ------------- Evolutions (0) 0 Regions Visited (4) 800 Robots Destroyed (19) 95 Value Destroyed (236) 236 Prototype IDs (7) 140 Alien Tech Used (0) 0 Bonus (-58) -58 TOTAL SCORE: 1213 Bonus ------- Friendly Fire -58 Cogmind --------- Core Integrity 0/250 Matter 230/300 Energy 51/100 System Corruption 2% Temperature Cool (0) Movement Treading (320) Ox2 Location -9/Mines Parts ------- > --- POWER (1) -------- (None) > --- PROPULSION (2) --- Light Treads > --- UTILITY (2) ------ High-capacity Storage Unit Light Armor Plating > --- WEAPON (2) ------- Advanced Beam Cannon > --- INVENTORY (20) --- Ion Engine Wheel Improved Heat Sink Light Armor Plating EM Pulse Gun Medium Laser Small Laser Particle Gun Particle Gun Advanced Beam Cannon Light Cannon Rocket Launcher Hammer Proton Bomb Trap Proton Bomb Trap Proton Bomb Trap Proton Bomb Trap Peak State ------------ > --- POWER ------------ Ion Engine > --- PROPULSION ------- Light Treads Wheel > --- UTILITY ---------- Improved Heat Sink High-capacity Storage Unit > --- WEAPON ----------- Advanced Beam Cannon Advanced Beam Cannon > --- INVENTORY -------- Ion Engine Ion Engine Light Treads Light Treads Wheel Light Armor Plating Light Armor Plating EM Pulse Gun Medium Laser Small Laser Particle Gun Particle Gun Advanced Beam Cannon Grenade Launcher Grenade Launcher Hammer [Rating: 15] Favorites ----------- Power Ion Engine Engine Ion Engine Propulsion Wheel Treads Light Treads Wheel Wheel Utility High-capacity Storage Unit Device Improved Heat Sink Storage High-capacity Storage Unit Protection Light Armor Plating Weapon Advanced Beam Cannon Energy Gun EM Pulse Gun Energy Cannon Advanced Beam Cannon Launcher Grenade Launcher Build | -11 -10 -10 -10 -9 ------- Run | Scr Mat Min Exi Min Slots Evolved . | . . . . . Power . | . . . . . Propulsion . | . . . . . Utility . | . . . . . Weapon . | . . . . . Parts Attached 23 | 6 11 . 1 5 Power 2 | 1 1 . . . Engine 2 | 1 1 . . . Core . | . . . . . Reactor . | . . . . . Propulsion 4 | 2 . . . 2 Treads 3 | 1 . . . 2 Leg . | . . . . . Wheel 1 | 1 . . . . Hover . | . . . . . Flight . | . . . . . Utility 8 | 1 5 . 1 1 Device 1 | . 1 . . . Storage 4 | 1 2 . 1 . Processor . | . . . . . Hackware . | . . . . . Protection 3 | . 2 . . 1 Artifact . | . . . . . Weapon 9 | 2 5 . . 2 Energy Gun 4 | 2 2 . . . Energy Cannon 4 | . 3 . . 1 Ballistic Gun . | . . . . . Ballistic Cannon . | . . . . . Launcher 1 | . . . . 1 Special Weapon . | . . . . . Impact Weapon . | . . . . . Slashing Weapon . | . . . . . Piercing Weapon . | . . . . . Special Melee Weapon . | . . . . . Unidentified Prototypes . | . . . . . Parts Lost 6 | . . . . 6 Power 1 | . . . . 1 Propulsion 3 | . . . . 3 Utility . | . . . . . Weapon 2 | . . . . 2 Highest Loss Streak 6 | . . . . 6 To Critical Strikes 1 | . . . . 1 Average Slot Usage (%) 99 | . 99 100 100 99 Engine 14 | . 14 14 14 14 Treads 13 | . 14 14 14 13 Wheel 14 | . 14 14 14 14 Device 10 | . 2 14 14 14 Storage 14 | . 14 14 14 14 Protection 3 | . 11 . . . Energy Gun 4 | . 13 . . . Energy Cannon 23 | . 14 28 28 26 Naked Turns . | . . . . . Heaviest Build 54 | 13 54 54 54 54 Greatest Support 10 | 10 10 10 10 10 Greatest Overweight (x) 5 | 1 5 5 5 5 Average Overweight (x) 4 | . 2 5 5 5 Largest Inventory Capacity 20 | 8 20 20 20 20 Average Capacity 17 | 6 13 20 20 20 Most Carried 20 | 4 16 20 20 20 Average Carried 16 | 2 10 19 20 19 Final Capacity 20 | 8 20 20 20 20 Final Carried 20 | 4 16 20 20 17 Class Distribution -------------------- 100% | Mutant Dominant Class ---------------- Mutant | -10/Materials Mutant | -10/Mines Mutant | -10/Exiles Mutant | -9/Mines Resources | -11 -10 -10 -10 -9 ----------- Run | Scr Mat Min Exi Min Matter Collected 396 | 251 79 48 . 18 Remotely . | . . . . . Salvage Created 451 | . 289 101 . 61 Parts 35 | . 24 8 . 3 Haulers Intercepted 1 | . 1 . . . Recyclers Shooed . | . . . . . Parts Field Recycled . | . . . . . Retrieved Matter . | . . . . . Parts Self-Destructed . | . . . . . Prevented . | . . . . . Kills | -11 -10 -10 -10 -9 ------- Run | Scr Mat Min Exi Min Combat Hostiles Destroyed 24 | . 8 6 . 10 Guns 3 | . 3 . . . Cannons 9 | . 3 6 . . AOE 11 | . 1 . . 10 Classes Destroyed 7 | . 5 1 . 1 Worker 2 | . . 1 . 1 Builder 1 | . 1 . . . Hauler 1 | . 1 . . . Watcher 1 | . 1 . . . Swarmer 12 | . 6 6 . . Grunt 2 | . 2 . . . Assembled 10 | . . . . 10 Best Kill Streak 10 | . 5 3 . 10 Combat Bots Only 10 | . 4 3 . 10 Max Kills in Single Turn 4 | . 2 1 . 4 Gunslinging . | . . . . . Exploded 4 | . 1 . . 4 Melee . | . . . . . Uniques/NPCs Destroyed . | . . . . . Combat | -11 -10 -10 -10 -9 -------- Run | Scr Mat Min Exi Min Damage Taken 1206 | . 250 324 . 632 Core 256 | . 33 86 . 137 Absorbed by Shields . | . . . . . Core Remaining (%) 100 | 100 . . . . Volleys Fired 50 | . 22 21 . 7 Largest 2 | . 2 2 . 2 Hottest 136 | . 108 136 . 136 Shots Fired 89 | . 40 41 . 8 Gun 29 | . 29 . . . Cannon 55 | . 11 41 . 3 Launcher 5 | . . . . 5 Special . | . . . . . Kinetic . | . . . . . Thermal 62 | . 18 41 . 3 Explosive 5 | . . . . 5 Electromagnetic 22 | . 22 . . . Robot Hit Streak 10 | . 10 7 . 4 Robot Miss Streak 4 | . 4 4 . . Penetration Max . | . . . . . Secondary Targets . | . . . . . Shots Hit Robots 48 | . 25 21 . 2 Core Hits 40 | . 11 7 . 22 Critical Kills . | . . . . . Critical Parts Destroyed . | . . . . . Critical Strikes 1 | . 1 . . . Corrupt 1 | . 1 . . . Melee Attacks . | . . . . . Impact . | . . . . . Slashing . | . . . . . Piercing . | . . . . . Sneak Attacks . | . . . . . Combat Hostiles . | . . . . . Follow-up Attacks . | . . . . . Damage Inflicted 1645 | . 524 469 . 652 Guns 223 | . 223 . . . Cannons 710 | . 200 469 . 41 Explosions 712 | . 101 . . 611 Melee . | . . . . . Ramming . | . . . . . Kinetic . | . . . . . Thermal 824 | . 314 469 . 41 Explosive 611 | . . . . 611 Electromagnetic 210 | . 210 . . . Impact . | . . . . . Slashing . | . . . . . Piercing . | . . . . . Highest Corruption 2 | . 2 2 2 2 Average Corruption 1 | . 1 2 2 2 Corruption Purged . | . . . . . Corruption Blocked . | . . . . . Effects 21 | . 3 8 5 5 Message Errors 7 | . 1 4 1 1 Matter Fused 2 | . 1 . . 1 Heat Flow Errors 2 | . . . 1 1 Energy Discharges 5 | . . 2 2 1 Data Loss (minor) 2 | . . 1 1 . Data Loss (major) 2 | . 1 . . 1 Weapon Failures 1 | . . 1 . . Overload Shots . | . . . . . Overflow Damage 32 | . 5 23 . 4 Projectiles 28 | . 5 23 . . Explosions 4 | . . . . 4 Melee . | . . . . . Knockbacks . | . . . . . Impact . | . . . . . Kinetic . | . . . . . Secondary . | . . . . . Self-Inflicted Damage 92 | . 32 . . 60 Shots 3 | . 1 . . 2 Rammed . | . . . . . Targets Rammed . | . . . . . Kicked . | . . . . . Crushed . | . . . . . Highest Temperature 288 | . 288 263 161 186 Average Temperature 112 | . 103 131 93 74 Received Heat Transfer 64 | . 24 . . 40 Effects 1 | . . 1 . . Energy Bleed 1 | . . 1 . . Siege Activations . | . . . . . Robots Corrupted 1 | . 1 . . . Combat Hostiles 1 | . 1 . . . Parts Fried . | . . . . . Impact Corruptions . | . . . . . Robots Melted . | . . . . . Combat Hostiles . | . . . . . Parts Melted . | . . . . . Heat Transferred 1321 | . 470 777 . 74 Parts Sabotaged . | . . . . . Parts Stolen . | . . . . . Parts Stripped . | . . . . . Power Chain Reactions 2 | . 2 . . . Missiles Intercepted . | . . . . . Alert | -11 -10 -10 -10 -9 ------- Run | Scr Mat Min Exi Min Peak Influence 381 | . 381 97 . 53 Initial 97 | . . 97 . . Average 107 | . 208 70 . 2 Maximum Alert Level 1 | . 1 . . . Low Security (%) 77 | 100 36 100 . 100 Level 1 22 | . 63 . . . Level 2 . | . . . . . Level 3 . | . . . . . Level 4 . | . . . . . Level 5 . | . . . . . High Security . | . . . . . Max Security . | . . . . . Squads Dispatched 2 | . 2 . . . Investigation 2 | . 2 . . . Extermination . | . . . . . Reinforcement . | . . . . . Assault . | . . . . . Garrison . | . . . . . Intercept . | . . . . . Searches Triggered . | . . . . . Construction Impeded . | . . . . . Haulers Reinforced . | . . . . . Active Scanning Responses . | . . . . . Cargo Convoy Interrupts . | . . . . . Stealth | -11 -10 -10 -10 -9 --------- Run | Scr Mat Min Exi Min Distress Signals 1 | . 1 . . . Communications Jammed . | . . . . . Distress Signals . | . . . . . Times Spotted 43 | . 18 6 . 19 Peak Tracking Total 9 | . 4 3 . 9 Tactical Retreats 3 | . 3 . . . Traps | -11 -10 -10 -10 -9 ------- Run | Scr Mat Min Exi Min Traps Triggered 4 | . 4 . . . Indirectly . | . . . . . Trap Hack Attempts . | . . . . . Triggered . | . . . . . Disarmed . | . . . . . Reprogrammed . | . . . . . Reused . | . . . . . Traps Extracted . | . . . . . Installed . | . . . . . Triggered . | . . . . . Most Traps Carried 4 | . . 4 4 4 Machines | -11 -10 -10 -10 -9 ---------- Run | Scr Mat Min Exi Min Machines Disabled 1 | . 1 . . . Max in Single Turn 1 | . 1 . . . Machines Sabotaged . | . . . . . Overloaded Fab Kills . | . . . . . Hacking | -11 -10 -10 -10 -9 --------- Run | Scr Mat Min Exi Min Machines Accessed 9 | . 7 1 1 . Terminals 7 | . 6 1 . . Fabricators . | . . . . . Repair Stations . | . . . . . Recycling Units 1 | . 1 . . . Scanalyzers . | . . . . . Garrison Access . | . . . . . Total Hacks 27 | . 24 2 1 . Successful 13 | . 10 2 1 . Failed 13 | . 13 . . . Catastrophic 1 | . 1 . . . Database Lockouts 1 | . 1 . . . Manual 17 | . 15 2 . . Terminals 24 | . 22 2 . . Fabricators . | . . . . . Repair Stations . | . . . . . Recycling Units 2 | . 2 . . . Scanalyzers . | . . . . . Garrison Access . | . . . . . Terminal Hacks 11 | . 8 2 1 . Record 1 | . . . 1 . Robot Analysis 2 | . 2 . . . Prototype ID Bank 6 | . 4 2 . . Hauler Manifests 1 | . 1 . . . Zone Layout 1 | . 1 . . . Fabricator Hacks . | . . . . . Repair Station Hacks . | . . . . . Recycling Unit Hacks . | . . . . . Scanalyzer . | . . . . . Garrison Access Hacks . | . . . . . Unauthorized Hacks 2 | . 2 . . . Terminals 1 | . 1 . . . Botnet 1 | . 1 . . . Fabricators . | . . . . . Repair Stations . | . . . . . Recycling Units 1 | . 1 . . . Tunnel 1 | . 1 . . . Scanalyzers . | . . . . . Garrison Access . | . . . . . Data Cores Recovered . | . . . . . Used . | . . . . . Hacking Detections 6 | . 5 1 . . Full Trace Events 1 | . 1 . . . Feedback Events . | . . . . . Feedback Blocked . | . . . . . Robot Schematics Acquired . | . . . . . Robots Built . | . . . . . Authchips . | . . . . . Time . | . . . . . Total Robot Build Rating . | . . . . . Part Schematics Acquired . | . . . . . Parts Built . | . . . . . Authchips . | . . . . . Time . | . . . . . Total Part Build Rating . | . . . . . Parts Repaired . | . . . . . Time . | . . . . . Parts Recycled . | . . . . . Recycled Matter . | . . . . . Retrieved Matter . | . . . . . Retrieved Components . | . . . . . Parts Scanalyzed . | . . . . . Part Schematics Acquired . | . . . . . Parts Damaged . | . . . . . Bothacking | -11 -10 -10 -10 -9 ------------ Run | Scr Mat Min Exi Min Used RIF Installer . | . . . . . Robots Hacked . | . . . . . Non-combat . | . . . . . Combat . | . . . . . Robot Hacks Applied . | . . . . . Relay Couplers Released . | . . . . . Fabnet Peak Effective % . | . . . . . Robots Rewired . | . . . . . Allies Hacked . | . . . . . Hacks Repelled . | . . . . . Allies | -11 -10 -10 -10 -9 -------- Run | Scr Mat Min Exi Min Total Allies 6 | . . 1 . 5 Largest Group 5 | . . 1 . 5 Highest-Rated Group 87 | . . 31 . 87 Highest-Rated Ally 31 | . . 31 . 31 Total Orders . | . . . . . Ally Attacks 15 | . . . . 15 Total Damage 89 | . . . . 89 Kills . | . . . . . Allies Corrupted . | . . . . . Allies Melted . | . . . . . Intel | -11 -10 -10 -10 -9 ------- Run | Scr Mat Min Exi Min Robot Analysis Total 2 | . 2 . . . Derelict Logs Recovered 1 | . . 1 . . Drone Launches . | . . . . . Drone Recoveries . | . . . . . Exploration | -11 -10 -10 -10 -9 ------------- Run | Scr Mat Min Exi Min Turns Passed 2497 | 54 756 1071 338 278 Spaces Moved 1574 | 46 519 641 217 151 Core 1 | 1 . . . . Treads . | . . . . . Legs . | . . . . . Wheels 1573 | 45 519 641 217 151 Hover . | . . . . . Flight . | . . . . . Fastest Speed 50 | 50 95 155 155 155 Average Speed 142 | 88 123 155 155 155 Slowest Speed 155 | 95 155 155 155 155 Overloaded Moves . | . . . . . Propulsion Burnouts . | . . . . . Robots Hopped . | . . . . . Cave-ins Triggered . | . . . . . Exploration Rate (%) 54 | 3 78 98 63 29 Regions Visited 4 Branch Regions 3 Pre-discovered Areas 3 | . 1 . 1 1 Known Exits Taken . | . . . . . Unknown Exits Taken 4 | 1 1 1 1 . Scrap Searched 1 | . . 1 . . Spaces Dug 22 | . . . . 22 Terrain Destroyed 42 | . 10 . . 32 Melee . | . . . . . Projectile . | . . . . . AOE 42 | . 10 . . 32 Terrain Rammed . | . . . . . Walls Destroyed . | . . . . . Machines Disabled . | . . . . . Actions | -11 -10 -10 -10 -9 --------- Run | Scr Mat Min Exi Min Total 1736 | 56 596 678 219 187 Wait 58 | 1 21 11 1 24 Move 1570 | 45 518 640 216 151 Hop . | . . . . . Pick Up 24 | 4 15 5 . . Fast Attach 8 | 6 2 . . . Attach 4 | . 1 . . 3 Detach 2 | . 2 . . . Swap 11 | . 8 . 1 2 Drop 9 | . 7 1 1 . Fire 50 | . 22 21 . 7 Melee . | . . . . . Ram . | . . . . . Kick . | . . . . . Crush . | . . . . . Escape Stasis . | . . . . . Rewire . | . . . . . Trap . | . . . . . Miscellaneous . | . . . . . Route ------- -11/Scrapyard -10/Materials (discovered 3 exits: [*Mat x2] / *Min) -10/Mines (discovered 3 exits: [*Mat x2] / *Exi) -10/Exiles -9/Mines History --------- Turn | Location | Event 18 | -11/Scrapyard | Discovered new exit (range 15) 55 | -11/Scrapyard | Entered Materials 305 | -10/Materials | Build established: Mutant 338 | -10/Materials | Discovered new exit (range 16) 353 | -10/Materials | Central database locked down 414 | -10/Materials | Discovered new exit (range 12) 699 | -10/Materials | Discovered new exit (range 15) 811 | -10/Materials | Entered Mines 814 | -10/Mines | Received a Mining Laser from a helpful Derelict 865 | -10/Mines | Found a hidden stash of uninstalled traps 1103 | -10/Mines | Discovered new exit (range 6) 1105 | -10/Mines | Received a Rocket Launcher from a helpful Derelict 1249 | -10/Mines | Deemed a non-threat by the Exiles lab entrance 1634 | -10/Mines | Learned location of 1 exit from Materials 1681 | -10/Mines | Discovered new exit (range 9) 1876 | -10/Mines | Discovered new exit (range 5) 1882 | -10/Mines | Entered Exiles 1921 | -10/Exiles | Met 8R-AWN 1947 | -10/Exiles | Met EX-HEX 2006 | -10/Exiles | Met EX-DEC 2042 | -10/Exiles | Learned location of Zion (-6) 2074 | -10/Exiles | Met EX-BIN 2201 | -10/Exiles | Discovered new exit (range 14) 2220 | -10/Exiles | Entered Mines 2224 | -9/Mines | Assisted by bots powering up and referring to "LRC-V3" 2420 | -9/Mines | Learned location of Storage (-9) 2444 | -9/Mines | Assembled infested the area 2449 | -9/Mines | Assisted by a Guerilla fighting off Assembled 2487 | -9/Mines | Core integrity fell below 50% 2493 | -9/Mines | Core integrity fell below 20% 2498 | -9/Mines | Destroyed by D-53 Grenadier with Mini Grenade Launcher Last Messages --------------- 02487_ Critical hit (Destroy). 02487_ Lgt. Treads destroyed. 02487_ Knocked back. 02489_ as-77329 destroyed. 02489_ HV Slug penetrates Wall. 02490_ HV-3U6(h) destroyed. 02490_ Trooper 2a destroyed. 02490_ Mercenary 2a destroyed. 02490_ as-21350 destroyed. 02490_ Adv. Beam Cannon destroyed. 02490_ Wheel destroyed. 02491_ as-76690 destroyed. 02491_ as-90421 destroyed. 02491_ Grenade Launcher destroyed. 02491_ Destroyed Grenade Launcher. 02494_ Ion Engine destroyed. 02494_ as-78529 destroyed. 02494_ as-72220 destroyed. 02495_ The unstable cave ceiling collapses. 02496_ Lgt. Treads destroyed. Map ----- +----------------------------------------------------+ | | | | | | | | | | | | | | | | | | | | | | | | | | | | | | | | | | | | | | | | | ??????????????????????#######????????????????????? | | ?????????????????????## ##????#??????????????? | | ????????????????????## ### #????????#####?? | | ????????????????????# ###?????# ##? | | ????????????????????# #????# #? | | ????????????????????# @ #???# #? | | ????????????????????# % ! #??# #? | | ????????????????????# #??# ### | | ???????????????????# *% #?## ## | | ?????????????????? a # dd ### #?# # | | ???????????????? ## % # #??# # | | ?????????????? a % ###?# # # ##??# # | | ????????????? #???# #?# #???# # | | ????????????? % #???# #?## ##???# # | | ?????????????## #####???# ####### #???## | | ??????????????## #; ????????# #??# #???# | | ???????????????# ### #????????#### #??# #???# | | ???????????????? ???##????????????# #??# #???# # | | ???????????????????????????????????# #??# #???#### | | ???????????????????????????????????# #??# #??????? | | ???????????????????????????????????# #### #??????? | | ???????????????????????????????????# !=%= #??????? | | ???????????????????????????????????# ######????### | | ???????????????????????????????????# ###???????# | | ???????????????????????????????????# #???????# # | | ???????????????????????????????????### #???????# # | | ?????????????????????????????????????# #???????# # | | ????????????????????????????########## ###?????# # | | ????????????????????????# #?????# # | | ?????????????????????????# #???### # | +----------------------------------------------------+ Best States ------------- Heat Dissipation 39 Energy Generation 10 Energy Capacity 250 Matter Stores 300 Matter Capacity 300 Sight Range 16 Terrain Scan Density 10 Armor Coverage 150 Evasion (%) 44 Recoil Reduction 1 Item Schematics ----------------- None Robot Schematics ------------------ None Fabricated ------------ Nothing Alien Tech Used ----------------- None Achievements -------------- None Challenges ------------ None Game ------ Seed MagneticTerrabombDrive Manual? 0 Play Time 00:20:19 Cumulative 337.6 hours Start 2022.10.17 @ 22:29:26 End 2022.10.17 @ 23:06:32 Sessions 1 Manual Loads 0 Difficulty Rogue Special Mode None Game No. 163 Rogue 163 Adventurer 0 Explorer 0 Win Type - Total 11 Types 6/0/3/0/0/0/2/0/0 Lore% 83 Gallery% 88 Achievement% 78 Wizard Run 0 Options --------- ASCII 0 Keyboard 1 Movement Numpad Keybinds 0 Fullscreen 2 Font 12/Smallcaps Map View 83x54 Tactical HUD 1 Map Filters NONE Filters NONE Steam 1 RUN: 07918b90-f71c-4ad3-a46f-f3f192b5ea05